fUSD/lending_fUSD_20240119
["ID","MTS","AMOUNT","RATE_DAILY","PERIOD"]
[312195305,1705684275110,-658.25,0.00022738,2]
[312195306,1705684275120,-658.25,0.00022738,2]
[312195307,1705684275128,-168.17866,0.00022739,7]
[312195308,1705684275137,-168.17866,0.00022739,7]
[312195309,1705684275148,-151.0,0.00022739,7]
[312195310,1705684275157,-151.0,0.00022739,7]
[312195311,1705684275168,-151.0,0.00022739,7]
[312195312,1705684275178,-151.0,0.00022739,7]
[312195313,1705684275189,-151.0,0.00022739,7]
[312195314,1705684275199,-151.0,0.00022739,7]
[312195315,1705684275210,-410.194433,0.00022739,7]
[312195316,1705684275220,-410.194433,0.00022739,7]
[312195317,1705684275229,-671.109371,0.00022739,7]
[312195318,1705684275240,-671.109371,0.00022739,7]
[312195319,1705684275250,-151.0,0.00022739,7]
[312195320,1705684275259,-151.0,0.00022739,7]
[312195321,1705684275269,-151.0,0.00022739,7]
[312195322,1705684275278,-151.0,0.00022739,7]
[312195323,1705684275287,-151.0,0.00022739,7]
[312195324,1705684275296,-151.0,0.00022739,7]
[312195325,1705684275306,-5091.101108,0.00022739,7]
[312195326,1705684275315,-5091.101108,0.00022739,7]
[312195327,1705684275324,-151.0,0.00022739,7]
[312195328,1705684275334,-2096.119647,0.00022739,7]
[312195329,1705684275343,-2096.119647,0.00022739,7]
[312195330,1705684275352,-500.0,0.00022739,2]
[312195331,1705684275362,-500.0,0.00022739,2]
[312195332,1705684275372,-500.0,0.00022739,2]
[312195333,1705684275381,-500.0,0.00022739,2]
[312195334,1705684275391,-290.23104046,0.00022739,2]
[312195335,1705684275401,-299.33007025,0.00022739,2]
[312195336,1705684275410,-500.0,0.00022739,2]
[312195337,1705684275419,-500.0,0.00022739,2]
[312195338,1705684275428,-274.60625148,0.00022739,2]
[312195339,1705684275437,-395.94,0.00022739,2]
[312195340,1705684275446,-170.25,0.00022739,2]
[312195341,1705684275456,-500.0,0.00022739,2]
[312195342,1705684275465,-500.0,0.00022739,2]
[312195343,1705684275475,-500.0,0.00022739,2]
[312195344,1705684275484,-376.35,0.00022739,2]
[312195345,1705684275493,-500.0,0.00022739,2]
[312195346,1705684275509,-500.0,0.00022739,2]
[312195347,1705684275519,-500.0,0.00022739,2]
[312195348,1705684275528,-513.23,0.00022739,2]
[312195349,1705684275537,-500.0,0.00022739,2]
[312195350,1705684275547,-500.0,0.00022739,2]
[312195351,1705684275556,-236.07,0.00022739,2]
[312195352,1705684275566,-500.0,0.00022739,2]
[312195353,1705684275576,-500.0,0.00022739,2]
[312195354,1705684275586,-500.0,0.00022739,2]
[312195355,1705684275595,-500.0,0.00022739,2]
[312195356,1705684275605,-500.0,0.00022739,2]
[312195357,1705684275614,-500.0,0.00022739,2]
[312195358,1705684275623,-542.14,0.00022739,2]
[312195359,1705684275633,-500.0,0.00022739,2]
[312195360,1705684275642,-500.0,0.00022739,2]
[312195361,1705684275652,-500.0,0.00022739,2]
[312195362,1705684275661,-500.0,0.00022739,2]
[312195363,1705684275671,-500.0,0.00022739,2]
[312195364,1705684275681,-500.0,0.00022739,2]
[312195365,1705684275690,-500.0,0.00022739,2]
[312195366,1705684275699,-500.0,0.00022739,2]
[312195367,1705684275708,-500.0,0.00022739,2]
[312195368,1705684275718,-449.26466735,0.00022739,2]
[312195369,1705684275727,-500.0,0.00022739,2]
[312195370,1705684275736,-542.59,0.00022739,2]
[312195371,1705684275745,-500.0,0.00022739,2]
[312195372,1705684275765,-500.0,0.00022739,2]
[312195373,1705684275774,-730.0,0.00022739,2]
[312195374,1705684275783,-500.0,0.00022739,2]
[312195375,1705684275792,-500.0,0.00022739,2]
[312195376,1705684275800,-500.0,0.00022739,2]
[312195377,1705684275809,-500.0,0.00022739,2]
[312195378,1705684275819,-528.39,0.00022739,2]
[312195379,1705684275828,-500.0,0.00022739,2]
[312195380,1705684275837,-542.09,0.00022739,2]
[312195381,1705684275846,-500.0,0.00022739,2]
[312195382,1705684275854,-500.0,0.00022739,2]
[312195383,1705684275863,-500.0,0.00022739,2]
[312195384,1705684275873,-500.0,0.00022739,2]
[312195385,1705684275881,-500.0,0.00022739,2]
[312195386,1705684275891,-676.04,0.00022739,2]
[312195387,1705684275900,-500.0,0.00022739,2]
[312195388,1705684275909,-557.15,0.00022739,2]
[312195389,1705684275919,-808.53,0.00022739,2]
[312195390,1705684275929,-500.0,0.00022739,2]
[312195391,1705684275938,-500.0,0.00022739,2]
[312195392,1705684275948,-436.65,0.00022739,2]
[312195393,1705684275958,-500.0,0.00022739,2]
[312195394,1705684275968,-418.56247138,0.00022739,2]
[312195395,1705684275978,-500.0,0.00022739,2]
[312195396,1705684275987,-500.0,0.00022739,2]
[312195397,1705684275996,-500.0,0.00022739,2]
[312195398,1705684276009,-500.0,0.00022739,2]
[312195399,1705684276019,-544.1,0.00022739,2]
[312195400,1705684276028,-500.0,0.00022739,2]
[312195401,1705684276039,-500.0,0.00022739,2]
[312195402,1705684276048,-513.9,0.00022739,2]
[312195403,1705684276057,-807.4,0.00022739,2]
[312195404,1705684276066,-500.0,0.00022739,2]
[312195405,1705684276079,-500.0,0.00022739,2]
[312195406,1705684276088,-500.0,0.00022739,2]
[312195407,1705684276097,-346.28,0.00022739,2]
[312195408,1705684276106,-500.0,0.00022739,2]
[312195409,1705684276116,-500.0,0.00022739,2]
[312195410,1705684276125,-1752.26,0.00022739,2]
[312195411,1705684276135,-500.0,0.00022739,2]
[312195412,1705684276144,-565.26,0.00022739,2]
[312195413,1705684276154,-500.0,0.00022739,2]
[312195414,1705684276164,-500.0,0.00022739,2]
[312195415,1705684276174,-500.0,0.00022739,2]
[312195416,1705684276184,-500.0,0.00022739,2]
[312195417,1705684276193,-500.0,0.00022739,2]
[312195418,1705684276203,-638.62,0.00022739,2]
[312195419,1705684276212,-500.0,0.00022739,2]
[312195420,1705684276222,-500.0,0.00022739,2]
[312195421,1705684276232,-500.0,0.00022739,2]
[312195422,1705684276242,-500.0,0.00022739,2]
[312195423,1705684276256,-500.0,0.00022739,2]
[312195424,1705684276265,-546.25,0.00022739,2]
[312195425,1705684276275,-500.0,0.00022739,2]
[312195426,1705684276286,-702.27,0.00022739,2]
[312195427,1705684276295,-500.0,0.00022739,2]
[312195428,1705684276306,-500.0,0.00022739,2]
[312195429,1705684276315,-500.0,0.00022739,2]
[312195430,1705684276324,-500.0,0.00022739,2]
[312195431,1705684276333,-500.0,0.00022739,2]
[312195432,1705684276343,-500.0,0.00022739,2]
[312195433,1705684276352,-500.0,0.00022739,2]
[312195434,1705684276361,-500.0,0.00022739,2]
[312195435,1705684276371,-500.0,0.00022739,2]
[312195436,1705684276380,-500.0,0.00022739,2]
[312195437,1705684276389,-1045.91,0.00022739,2]
[312195438,1705684276399,-500.0,0.00022739,2]
[312195439,1705684276408,-615.78,0.00022739,2]
[312195440,1705684276417,-546.84,0.00022739,2]
[312195441,1705684276426,-884.67,0.00022739,2]
[312195442,1705684276435,-270.8,0.00022739,2]
[312195443,1705684276444,-509.88,0.00022739,2]
[312195444,1705684276454,-500.0,0.00022739,2]
[312195445,1705684276462,-679.98,0.00022739,2]
[312195446,1705684276472,-500.0,0.00022739,2]
[312195447,1705684276481,-500.0,0.00022739,2]
[312195448,1705684276490,-500.0,0.00022739,2]
[312195449,1705684276503,-500.0,0.00022739,2]
[312195450,1705684276513,-500.0,0.00022739,2]
[312195451,1705684276522,-500.0,0.00022739,2]
[312195452,1705684276532,-500.0,0.00022739,2]
[312195453,1705684276541,-500.0,0.00022739,2]
[312195454,1705684276550,-500.0,0.00022739,2]
[312195455,1705684276560,-500.0,0.00022739,2]
[312195456,1705684276570,-602.03,0.00022739,2]
[312195457,1705684276580,-500.0,0.00022739,2]
[312195458,1705684276589,-500.0,0.00022739,2]
[312195459,1705684276599,-1736.83,0.00022739,2]
[312195460,1705684276608,-500.0,0.00022739,2]
[312195461,1705684276617,-500.0,0.00022739,2]
[312195462,1705684276626,-715.58,0.00022739,2]
[312195463,1705684276636,-500.0,0.00022739,2]
[312195464,1705684276647,-582.03,0.00022739,2]
[312195465,1705684276657,-500.0,0.00022739,2]
[312195466,1705684276667,-648.18,0.00022739,2]
[312195467,1705684276677,-500.0,0.00022739,2]
[312195468,1705684276687,-581.09,0.00022739,2]
[312195469,1705684276697,-500.0,0.00022739,2]
[312195470,1705684276706,-500.0,0.00022739,2]
[312195471,1705684276715,-588.13,0.00022739,2]
[312195472,1705684276724,-500.0,0.00022739,2]
[312195473,1705684276733,-800.73,0.00022739,2]
[312195474,1705684276743,-524.92,0.00022739,2]
[312195475,1705684276756,-500.0,0.00022739,2]
[312195476,1705684276765,-568.75,0.00022739,2]
[312195477,1705684276775,-500.0,0.00022739,2]
[312195478,1705684276784,-729.35,0.00022739,2]
[312195479,1705684276793,-798.17,0.00022739,2]
[312195480,1705684276802,-510.07,0.00022739,2]
[312195481,1705684276813,-396.32304493,0.00022739,2]
[312195482,1705684276822,-162.34,0.00022739,2]
[312195483,1705684276832,-500.0,0.00022739,2]
[312195484,1705684276842,-500.0,0.00022739,2]
[312195485,1705684276851,-500.0,0.00022739,2]
[312195486,1705684276860,-594.92,0.00022739,2]
[312195487,1705684276870,-789.92,0.00022739,2]
[312195488,1705684276879,-500.0,0.00022739,2]
[312195489,1705684276889,-500.0,0.00022739,2]
[312195490,1705684276898,-500.0,0.00022739,2]
[312195491,1705684276908,-500.0,0.00022739,2]
[312195492,1705684276917,-500.0,0.00022739,2]
[312195493,1705684276927,-500.0,0.00022739,2]
[312195494,1705684276937,-500.0,0.00022739,2]
[312195495,1705684276946,-500.0,0.00022739,2]
[312195496,1705684276957,-500.0,0.00022739,2]
[312195497,1705684276966,-500.0,0.00022739,2]
[312195498,1705684276976,-593.01,0.00022739,2]
[312195499,1705684276985,-547.54,0.00022739,2]
[312195500,1705684276996,-500.0,0.00022739,2]
[312195501,1705684277009,-629.49238806,0.00022739,2]
[312195502,1705684277019,-500.0,0.00022739,2]
[312195503,1705684277029,-500.0,0.00022739,2]
[312195504,1705684277040,-500.0,0.00022739,2]
[312195505,1705684277049,-500.0,0.00022739,2]
[312195506,1705684277058,-500.0,0.00022739,2]
[312195507,1705684277067,-836.55,0.00022739,2]
[312195508,1705684277079,-613.85,0.00022739,2]
[312195509,1705684277089,-500.0,0.00022739,2]
[312195510,1705684277098,-563.98,0.00022739,2]
[312195511,1705684277108,-500.0,0.00022739,2]
[312195512,1705684277117,-508.5330137,0.00022739,2]
[312195513,1705684277127,-500.0,0.00022739,2]
[312195514,1705684277136,-1354.55,0.00022739,2]
[312195515,1705684277145,-500.0,0.00022739,2]
[312195516,1705684277155,-500.0,0.00022739,2]
[312195517,1705684277165,-500.0,0.00022739,2]
[312195518,1705684277174,-661.22,0.00022739,2]
[312195519,1705684277184,-500.0,0.00022739,2]
[312195520,1705684277193,-500.0,0.00022739,2]
[312195521,1705684277202,-500.0,0.00022739,2]
[312195522,1705684277211,-500.0,0.00022739,2]
[312195523,1705684277222,-500.0,0.00022739,2]
[312195524,1705684277231,-500.0,0.00022739,2]
[312195525,1705684277240,-521.39,0.00022739,2]
[312195526,1705684277252,-649.06,0.00022739,2]
[312195527,1705684277262,-521.57046494,0.00022739,2]
[312195528,1705684277271,-500.0,0.00022739,2]
[312195529,1705684277280,-942.15,0.00022739,2]
[312195530,1705684277289,-500.0,0.00022739,2]
[312195531,1705684277298,-500.0,0.00022739,2]
[312195532,1705684277307,-500.0,0.00022739,2]
[312195533,1705684277316,-500.0,0.00022739,2]
[312195534,1705684277326,-665.24,0.00022739,2]
[312195535,1705684277336,-509.47,0.00022739,2]
[312195536,1705684277345,-500.0,0.00022739,2]
[312195537,1705684277354,-500.0,0.00022739,2]
[312195538,1705684277363,-567.16,0.00022739,2]
[312195539,1705684277372,-500.0,0.00022739,2]
[312195540,1705684277381,-500.0,0.00022739,2]
[312195541,1705684277390,-500.0,0.00022739,2]
[312195542,1705684277399,-587.72,0.00022739,2]
[312195543,1705684277409,-500.0,0.00022739,2]
[312195544,1705684277418,-500.0,0.00022739,2]
[312195545,1705684277427,-500.0,0.00022739,2]
[312195546,1705684277435,-500.0,0.00022739,2]
[312195547,1705684277445,-609.03,0.00022739,2]
[312195548,1705684277455,-500.0,0.00022739,2]
[312195549,1705684277464,-500.0,0.00022739,2]
[312195550,1705684277473,-500.0,0.00022739,2]
[312195551,1705684277482,-500.0,0.00022739,2]
[312195552,1705684277491,-738.2,0.00022739,2]
[312195553,1705684277501,-673.09,0.00022739,2]
[312195554,1705684277511,-1257.45,0.00022739,2]
[312195555,1705684277520,-500.0,0.00022739,2]
[312195556,1705684277529,-500.0,0.00022739,2]
[312195557,1705684277538,-500.0,0.00022739,2]
[312195558,1705684277547,-500.0,0.00022739,2]
[312195559,1705684277556,-673.79,0.00022739,2]
[312195560,1705684277566,-500.0,0.00022739,2]
[312195561,1705684277574,-500.0,0.00022739,2]
[312195562,1705684277583,-624.73,0.00022739,2]
[312195563,1705684277593,-500.0,0.00022739,2]
[312195564,1705684277602,-500.0,0.00022739,2]
[312195565,1705684277611,-518.0,0.00022739,2]
[312195566,1705684277621,-500.0,0.00022739,2]
[312195567,1705684277630,-500.0,0.00022739,2]
[312195568,1705684277639,-500.0,0.00022739,2]
[312195569,1705684277648,-500.0,0.00022739,2]
[312195570,1705684277657,-500.0,0.00022739,2]
[312195571,1705684277666,-500.0,0.00022739,2]
[312195572,1705684277676,-500.0,0.00022739,2]
[312195573,1705684277686,-634.3,0.00022739,2]
[312195574,1705684277695,-500.0,0.00022739,2]
[312195575,1705684277704,-500.0,0.00022739,2]
[312195576,1705684277713,-500.0,0.00022739,2]
[312195577,1705684277724,-500.0,0.00022739,2]
[312195578,1705684277733,-500.0,0.00022739,2]
[312195579,1705684277742,-515.08285215,0.00022739,2]
[312195580,1705684277753,-286.32772675,0.00022739,2]
[312195581,1705684277762,-500.0,0.00022739,2]
[312195582,1705684277771,-821.92,0.00022739,2]
[312195583,1705684277895,-500.0,0.00022739,2]
[312195584,1705684277905,-500.0,0.00022739,2]
[312195585,1705684277914,-635.22550283,0.00022739,2]
[312195586,1705684277923,-500.0,0.00022739,2]
[312195587,1705684277933,-500.0,0.00022739,2]
[312195588,1705684277942,-500.0,0.00022739,2]
[312195589,1705684277951,-500.0,0.00022739,2]
[312195590,1705684277960,-673.61,0.00022739,2]
[312195591,1705684277970,-500.0,0.00022739,2]
[312195592,1705684277980,-500.0,0.00022739,2]
[312195593,1705684277990,-595.37162841,0.00022739,2]
[312195594,1705684278000,-277.38,0.00022739,2]
[312195595,1705684278010,-500.0,0.00022739,2]
[312195596,1705684278020,-500.0,0.00022739,2]
[312195597,1705684278030,-200.9071425,0.00022739,2]
[312195598,1705684278041,-522.51,0.00022739,2]
[312195599,1705684278050,-799.17,0.00022739,2]
[312195600,1705684278060,-500.0,0.00022739,2]
[312195601,1705684278072,-543.84,0.00022739,2]
[312195602,1705684278081,-500.0,0.00022739,2]
[312195603,1705684278091,-862.29,0.00022739,2]
[312195604,1705684278100,-539.84,0.00022739,2]
[312195605,1705684278117,-500.0,0.00022739,2]
[312195606,1705684278131,-500.0,0.00022739,2]
[312195607,1705684278140,-500.0,0.00022739,2]
[312195608,1705684278151,-500.0,0.00022739,2]
[312195609,1705684278161,-500.0,0.00022739,2]
[312195610,1705684278171,-500.0,0.00022739,2]
[312195611,1705684278181,-500.0,0.00022739,2]
[312195612,1705684278190,-903.19,0.00022739,2]
[312195613,1705684278200,-500.0,0.00022739,2]
[312195614,1705684278210,-720.59,0.00022739,2]
[312195615,1705684278221,-500.0,0.00022739,2]
[312195616,1705684278232,-502.2,0.00022739,2]
[312195617,1705684278241,-500.0,0.00022739,2]
[312195618,1705684278253,-500.0,0.00022739,2]
[312195619,1705684278262,-500.0,0.00022739,2]
[312195620,1705684278272,-500.0,0.00022739,2]
[312195621,1705684278283,-790.36,0.00022739,2]
[312195622,1705684278293,-500.0,0.00022739,2]
[312195623,1705684278303,-500.0,0.00022739,2]
[312195624,1705684278313,-500.0,0.00022739,2]
[312195625,1705684278323,-500.0,0.00022739,2]
[312195626,1705684278333,-500.0,0.00022739,2]
[312195627,1705684278343,-934.67,0.00022739,2]
[312195628,1705684278353,-500.0,0.00022739,2]
[312195629,1705684278363,-500.0,0.00022739,2]
[312195630,1705684278372,-500.0,0.00022739,2]
[312195631,1705684278384,-1004.82,0.00022739,2]
[312195632,1705684278393,-500.0,0.00022739,2]
[312195633,1705684278406,-718.68,0.00022739,2]
[312195634,1705684278418,-500.0,0.00022739,2]
[312195635,1705684278428,-2888.65,0.00022739,2]
[312195636,1705684278438,-500.0,0.00022739,2]
[312195637,1705684278448,-155.44,0.00022739,2]
[312195638,1705684278460,-225.42201373,0.00022739,2]
[312195639,1705684278469,-751.55,0.00022739,2]
[312195640,1705684278480,-500.0,0.00022739,2]
[312195641,1705684278491,-500.0,0.00022739,2]
[312195642,1705684278503,-767.72,0.00022739,2]
[312195643,1705684278513,-500.0,0.00022739,2]
[312195644,1705684278522,-500.0,0.00022739,2]
[312195645,1705684278532,-261.43640631,0.00022739,2]
[312195646,1705684278542,-500.0,0.00022739,2]
[312195647,1705684278552,-1564.8,0.00022739,2]
[312195648,1705684278561,-500.0,0.00022739,2]
[312195649,1705684278571,-500.0,0.00022739,2]
[312195650,1705684278581,-2087.23,0.00022739,2]
[312195651,1705684278593,-553.54,0.00022739,2]
[312195652,1705684278605,-635.0,0.00022739,2]
[312195653,1705684278616,-235.86,0.00022739,2]
[312195654,1705684278626,-549.9449103,0.00022739,2]
[312195655,1705684278637,-801.0,0.00022739,2]
[312195656,1705684278648,-500.0,0.00022739,2]
[312195657,1705684278660,-779.44,0.00022739,2]
[312195658,1705684278671,-692.16,0.00022739,2]
[312195659,1705684278680,-500.0,0.00022739,2]
[312195660,1705684278692,-776.21,0.00022739,2]
[312195661,1705684278701,-500.0,0.00022739,2]
[312195662,1705684278711,-500.0,0.00022739,2]
[312195663,1705684278722,-2489.47,0.00022739,2]
[312195664,1705684278733,-1305.59,0.00022739,2]
[312195665,1705684278743,-500.0,0.00022739,2]
[312195666,1705684278754,-540.08,0.00022739,2]
[312195667,1705684278763,-500.0,0.00022739,2]
[312195668,1705684278773,-657.66,0.00022739,2]
[312195669,1705684278783,-500.0,0.00022739,2]
[312195670,1705684278794,-3922.54,0.00022739,2]
[312195671,1705684278805,-500.0,0.00022739,2]
[312195672,1705684278815,-500.0,0.00022739,2]
[312195673,1705684278825,-500.0,0.00022739,2]
[312195674,1705684278835,-500.0,0.00022739,2]
[312195675,1705684278845,-500.0,0.00022739,2]
[312195676,1705684278854,-500.0,0.00022739,2]
[312195677,1705684278864,-500.0,0.00022739,2]
[312195678,1705684278874,-500.0,0.00022739,2]
[312195679,1705684278884,-500.0,0.00022739,2]
[312195680,1705684278894,-500.0,0.00022739,2]
[312195681,1705684278904,-500.0,0.00022739,2]
[312195682,1705684278914,-223.2117307,0.00022739,2]
[312195683,1705684278923,-500.0,0.00022739,2]
[312195684,1705684278933,-500.0,0.00022739,2]
[312195685,1705684278943,-1067.45,0.00022739,5]
[312195686,1705684278953,-500.0,0.00022739,2]
[312195687,1705684278963,-574.27,0.00022739,2]
[312195688,1705684278972,-2955.88,0.00022739,2]
[312195689,1705684278982,-500.0,0.00022739,2]
[312195690,1705684278992,-500.0,0.00022739,2]
[312195691,1705684279002,-500.0,0.00022739,2]
[312195692,1705684279012,-2247.96,0.00022739,2]
[312195693,1705684279022,-4625.17,0.00022739,2]
[312195694,1705684279034,-500.0,0.00022739,2]
[312195695,1705684279050,-500.0,0.00022739,2]
[312195696,1705684279061,-500.0,0.00022739,2]
[312195697,1705684279071,-598.64,0.00022739,2]
[312195698,1705684279084,-500.0,0.00022739,2]
[312195699,1705684279094,-500.0,0.00022739,2]
[312195700,1705684279105,-500.0,0.00022739,2]
[312195701,1705684279115,-500.0,0.00022739,2]
[312195702,1705684279126,-500.0,0.00022739,2]
[312195703,1705684279135,-500.0,0.00022739,2]
[312195704,1705684279146,-792.41,0.00022739,2]
[312195705,1705684279155,-500.0,0.00022739,2]
[312195706,1705684279165,-3375.04,0.00022739,2]
[312195707,1705684279175,-1145.18,0.00022739,2]
[312195708,1705684279184,-1482.95,0.00022739,2]
[312195709,1705684279193,-640.08,0.00022739,2]
[312195710,1705684279203,-500.0,0.00022739,2]
[312195711,1705684279213,-432.04483845,0.00022739,2]
[312195712,1705684279224,-500.0,0.00022739,2]
[312195713,1705684279235,-500.0,0.00022739,2]
[312195714,1705684279246,-3968.6,0.00022739,2]
[312195715,1705684279258,-642.03,0.00022739,2]
[312195716,1705684279269,-759.02,0.00022739,2]
[312195717,1705684279280,-500.0,0.00022739,2]
[312195718,1705684279291,-500.0,0.00022739,2]
[312195719,1705684279302,-519.9,0.00022739,2]
[312195720,1705684279313,-1025.72,0.00022739,2]
[312195721,1705684279324,-2480.63,0.00022739,2]
[312195722,1705684279334,-500.0,0.00022739,2]
[312195723,1705684279343,-6021.86,0.00022739,2]
[312195724,1705684279352,-733.85,0.00022739,2]
[312195725,1705684279362,-359.52657917,0.00022739,2]
[312195726,1705684279371,-500.0,0.00022739,2]
[312195727,1705684279380,-3098.92,0.00022739,2]
[312195728,1705684279389,-500.0,0.00022739,2]
[312195729,1705684279399,-500.0,0.00022739,2]
[312195730,1705684279409,-500.0,0.00022739,2]
[312195731,1705684279418,-753.94,0.00022739,2]
[312195732,1705684279428,-500.0,0.00022739,2]
[312195733,1705684279438,-500.0,0.00022739,2]
[312195734,1705684279448,-978.79,0.00022739,2]
[312195735,1705684279457,-500.0,0.00022739,2]
[312195736,1705684279467,-500.0,0.00022739,2]
[312195737,1705684279476,-682.8,0.00022739,2]
[312195738,1705684279487,-4921.79,0.00022739,2]
[312195739,1705684279497,-500.0,0.00022739,2]
[312195740,1705684279509,-500.0,0.00022739,2]
[312195741,1705684279519,-500.0,0.00022739,2]
[312195742,1705684279529,-8646.25,0.00022739,2]
[312195743,1705684279539,-500.0,0.00022739,2]
[312195744,1705684279549,-1163.38,0.00022739,2]
[312195745,1705684279559,-500.0,0.00022739,2]
[312195746,1705684279571,-500.0,0.00022739,2]
[312195747,1705684279581,-437.72074619,0.00022739,2]
[312195748,1705684279590,-500.0,0.00022739,2]
[312195749,1705684279599,-500.0,0.00022739,2]
[312195750,1705684279608,-500.0,0.00022739,2]
[312195751,1705684279617,-500.0,0.00022739,2]
[312195752,1705684279627,-500.0,0.00022739,2]
[312195753,1705684279636,-2479.77,0.00022739,2]
[312195754,1705684279646,-500.0,0.00022739,2]
[312195755,1705684279655,-500.0,0.00022739,2]
[312195756,1705684279664,-500.0,0.00022739,2]
[312195757,1705684279674,-500.0,0.00022739,2]
[312195758,1705684279684,-805.35,0.00022739,2]
[312195759,1705684279693,-500.0,0.00022739,2]
[312195760,1705684279703,-1096.89,0.00022739,2]
[312195761,1705684279712,-500.0,0.00022739,2]
[312195762,1705684279722,-500.0,0.00022739,2]
[312195763,1705684279732,-500.0,0.00022739,2]
[312195764,1705684279742,-846.06,0.00022739,2]
[312195765,1705684279754,-522.24,0.00022739,2]
[312195766,1705684279763,-1247.86,0.00022739,2]
[312195767,1705684279773,-1521.64,0.00022739,2]
[312195768,1705684279782,-500.0,0.00022739,2]
[312195769,1705684279792,-810.2,0.00022739,2]
[312195770,1705684279802,-219.76545881,0.00022739,2]
[312195771,1705684279812,-1270.75,0.00022739,2]
[312195772,1705684279823,-500.0,0.00022739,2]
[312195773,1705684279833,-500.0,0.00022739,2]
[312195774,1705684279843,-500.0,0.00022739,2]
[312195775,1705684279853,-648.61,0.00022739,2]
[312195776,1705684279862,-500.0,0.00022739,2]
[312195777,1705684279872,-500.0,0.00022739,2]
[312195778,1705684279882,-500.0,0.00022739,2]
[312195779,1705684279893,-1158.73,0.00022739,2]
[312195780,1705684279904,-1375.2,0.00022739,2]
[312195781,1705684279913,-500.0,0.00022739,2]
[312195782,1705684279923,-500.0,0.00022739,2]
[312195783,1705684279932,-17751.82,0.00022739,2]
[312195784,1705684279942,-500.0,0.00022739,2]
[312195785,1705684279952,-500.0,0.00022739,2]
[312195786,1705684279963,-503.19,0.00022739,2]
[312195787,1705684279973,-1097.0,0.00022739,2]
[312195788,1705684279983,-1798.17,0.00022739,2]
[312195789,1705684279994,-187.92,0.00022739,2]
[312195790,1705684280007,-500.0,0.00022739,2]
[312195791,1705684280019,-1690.88,0.00022739,2]
[312195792,1705684280029,-918.43,0.00022739,2]
[312195793,1705684280041,-500.0,0.00022739,2]
[312195794,1705684280051,-1931.87,0.00022739,2]
[312195795,1705684280061,-662.05,0.00022739,2]
[312195796,1705684280074,-596.13182433,0.00022739,2]
[312195797,1705684280083,-820.42,0.00022739,2]
[312195798,1705684280093,-500.0,0.00022739,2]
[312195799,1705684280103,-1315.74,0.00022739,2]
[312195800,1705684280113,-500.0,0.00022739,2]
[312195801,1705684280122,-2334.22,0.00022739,2]
[312195802,1705684280131,-500.0,0.00022739,2]
[312195803,1705684280141,-500.0,0.00022739,2]
[312195804,1705684280151,-500.0,0.00022739,2]